[Event "Live Chess"]
[Site "Chess.com"]
[Date "2023.05.21"]
[Round "-"]
[White "AyannaTang"]
[Black "LiamBellwood"]
[Result "0-1"]
[WhiteElo "230"]
[BlackElo "1914"]
[TimeControl "300"]
[EndTime "6:14:05 PDT"]
[Termination "LiamBellwood won by checkmate"]

1. e4 {[%clk 0:04:58.9]} 1... e6 {[%clk 0:04:59.9]} 2. d4 {[%clk 0:04:46.3]}
2... d5 {[%clk 0:04:59.8]} 3. Nc3 {[%clk 0:04:37.6]} 3... Nf6 {[%clk 0:04:58.1]}
4. f3 {[%clk 0:04:32.6]} 4... dxe4 {[%clk 0:04:54.8]} 5. fxe4 {[%clk 0:04:31.3]}
5... Bb4 {[%clk 0:04:50.7]} 6. Bg5 {[%clk 0:04:28.5]} 6... h6 {[%clk 0:04:48.3]}
7. Bxf6 {[%clk 0:04:26.9]} 7... Qxf6 {[%clk 0:04:48.2]} 8. a3 {[%clk 0:04:25.4]}
8... Bxc3+ {[%clk 0:04:47.1]} 9. bxc3 {[%clk 0:04:20.5]} 9... O-O {[%clk
0:04:47]} 10. Qd2 {[%clk 0:04:18.6]} 10... b6 {[%clk 0:04:43.8]} 11. O-O-O
{[%clk 0:04:16.9]} 11... Bb7 {[%clk 0:04:43.1]} 12. d5 {[%clk 0:04:13.6]} 12...
exd5 {[%clk 0:04:40]} 13. exd5 {[%clk 0:04:12.6]} 13... Nd7 {[%clk 0:04:37.9]}
14. d6 {[%clk 0:04:11]} 14... cxd6 {[%clk 0:04:31.6]} 15. Qxd6 {[%clk
0:04:07.9]} 15... Qxc3 {[%clk 0:04:30.7]} 16. Qxd7 {[%clk 0:04:04.1]} 16... Be4
{[%clk 0:04:18]} 17. Bd3 {[%clk 0:03:35.3]} 17... Qxa3+ {[%clk 0:04:15.5]} 18.
Kd2 {[%clk 0:03:31.8]} 18... Rad8 {[%clk 0:04:11.7]} 19. Qxa7 {[%clk 0:03:29.5]}
19... Qxa7 {[%clk 0:04:09.8]} 20. Ke2 {[%clk 0:03:26.7]} 20... Bxd3+ {[%clk
0:04:08.6]} 21. cxd3 {[%clk 0:03:25.4]} 21... Qa2+ {[%clk 0:04:07.4]} 22. Ke1
{[%clk 0:03:23.9]} 22... Rfe8+ {[%clk 0:04:05.4]} 23. Kf1 {[%clk 0:03:22.3]}
23... Re6 {[%clk 0:04:03]} 24. Nf3 {[%clk 0:03:19.4]} 24... Qe2+ {[%clk
0:04:00.6]} 25. Kg1 {[%clk 0:03:12.3]} 25... Qxd1+ {[%clk 0:04:00.5]} 26. Kf2
{[%clk 0:03:10.9]} 26... Qxh1 {[%clk 0:03:59.2]} 27. Ng1 {[%clk 0:03:08.4]}
27... Rxd3 {[%clk 0:03:57.1]} 28. Ne2 {[%clk 0:03:05.2]} 28... Rd2 {[%clk
0:03:54.7]} 29. g4 {[%clk 0:03:01.7]} 29... Rdxe2+ {[%clk 0:03:52.4]} 30. Kg3
{[%clk 0:02:59.5]} 30... Qe1+ {[%clk 0:03:48.8]} 31. Kf3 {[%clk 0:02:57.7]}
31... R2e4 {[%clk 0:03:46.5]} 32. h4 {[%clk 0:02:52.8]} 32... Qe2+ {[%clk
0:03:46.4]} 33. Kg3 {[%clk 0:02:51.1]} 33... Rxg4+ {[%clk 0:03:46.2]} 34. Kh3
{[%clk 0:02:49.4]} 34... Qg2# {[%clk 0:03:46.1]} 0-1

[Event "Live Chess"]
[Site "Chess.com"]
[Date "2023.05.21"]
[Round "-"]
[White "viktorskliarov"]
[Black "YrrriKharkiv"]
[Result "1-0"]
[WhiteElo "2650"]
[BlackElo "2086"]
[TimeControl "300"]
[EndTime "6:14:15 PDT"]
[Termination "viktorskliarov won by resignation"]

1. e4 {[%clk 0:04:57.2]} 1... e6 {[%clk 0:04:58.9]} 2. d4 {[%clk 0:04:54.3]}
2... d5 {[%clk 0:04:58.1]} 3. e5 {[%clk 0:04:52.1]} 3... c5 {[%clk 0:04:56.8]}
4. c3 {[%clk 0:04:51]} 4... Qa5 {[%clk 0:04:55.7]} 5. dxc5 {[%clk 0:04:39.3]}
5... Qxc5 {[%clk 0:04:53.7]} 6. Nf3 {[%clk 0:04:33.9]} 6... Nc6 {[%clk
0:04:49.7]} 7. Be3 {[%clk 0:04:30.4]} 7... Qa5 {[%clk 0:04:48.6]} 8. Bd3 {[%clk
0:04:27.2]} 8... Qc7 {[%clk 0:04:46.3]} 9. Bf4 {[%clk 0:04:19.8]} 9... Nge7
{[%clk 0:04:33.3]} 10. Bg3 {[%clk 0:04:15.3]} 10... g6 {[%clk 0:04:29.3]} 11.
O-O {[%clk 0:03:47.1]} 11... Nf5 {[%clk 0:04:24.6]} 12. Bxf5 {[%clk 0:03:46.2]}
12... gxf5 {[%clk 0:04:23.2]} 13. Nbd2 {[%clk 0:03:45.3]} 13... Be7 {[%clk
0:04:10.1]} 14. c4 {[%clk 0:03:43.3]} 14... d4 {[%clk 0:04:01.8]} 15. Nb3 {[%clk
0:03:39.2]} 15... d3 {[%clk 0:04:00.7]} 16. Qxd3 {[%clk 0:03:35.9]} 16... Bd7
{[%clk 0:03:58]} 17. Rad1 {[%clk 0:03:28]} 17... Rd8 {[%clk 0:03:56.9]} 18. Qe3
{[%clk 0:03:25.1]} 18... h5 {[%clk 0:03:55.7]} 19. h3 {[%clk 0:03:18.1]} 19...
b6 {[%clk 0:03:42.7]} 20. Rfe1 {[%clk 0:02:46.3]} 20... Nb8 {[%clk 0:03:30.9]}
21. Rc1 {[%clk 0:02:37.1]} 21... Na6 {[%clk 0:03:25.8]} 22. Nbd4 {[%clk
0:02:32.2]} 22... Bc5 {[%clk 0:03:12]} 23. Qg5 {[%clk 0:02:22.3]} 23... Bc6
{[%clk 0:02:51]} 24. Nb5 {[%clk 0:01:44.2]} 24... Qe7 {[%clk 0:02:41.3]} 25. Qg7
{[%clk 0:01:35.7]} 25... Qf8 {[%clk 0:02:35.4]} 26. Qxf8+ {[%clk 0:01:30.2]}
26... Kxf8 {[%clk 0:02:31.7]} 27. Nxa7 {[%clk 0:01:28.4]} 27... Bxf3 {[%clk
0:02:27.8]} 28. gxf3 {[%clk 0:01:27.5]} 28... Rd3 {[%clk 0:02:19.7]} 29. Red1
{[%clk 0:01:19.8]} 29... Rxd1+ {[%clk 0:01:59.1]} 30. Rxd1 {[%clk 0:01:18]}
30... Kg7 {[%clk 0:01:46.5]} 31. Bh4 {[%clk 0:01:17.3]} 31... Ra8 {[%clk
0:01:39.1]} 32. Nb5 {[%clk 0:01:16.4]} 32... Nb4 {[%clk 0:01:33]} 33. a3 {[%clk
0:01:14]} 33... Nc6 {[%clk 0:01:22.7]} 34. Bf6+ {[%clk 0:01:13.1]} 34... Kh6
{[%clk 0:01:16.7]} 35. Kf1 {[%clk 0:01:11.9]} 35... f4 {[%clk 0:01:00.7]} 36.
Rd7 {[%clk 0:01:10]} 36... Kg6 {[%clk 0:00:58]} 37. Ke2 {[%clk 0:01:08.6]} 37...
Ra4 {[%clk 0:00:49.8]} 38. b3 {[%clk 0:01:06.8]} 38... Ra8 {[%clk 0:00:48]} 39.
b4 {[%clk 0:01:05.6]} 39... Bf8 {[%clk 0:00:46.3]} 40. Rb7 {[%clk 0:01:04.7]}
40... Kf5 {[%clk 0:00:42.8]} 41. Rxb6 {[%clk 0:01:00.1]} 41... Nxe5 {[%clk
0:00:41.8]} 42. Bxe5 {[%clk 0:00:59.3]} 42... Kxe5 {[%clk 0:00:41]} 43. Rb7
{[%clk 0:00:58.9]} 43... Kf6 {[%clk 0:00:39]} 44. c5 {[%clk 0:00:56.6]} 44... e5
{[%clk 0:00:33.9]} 45. c6 {[%clk 0:00:53.7]} 45... Rc8 {[%clk 0:00:33.5]} 46. c7
{[%clk 0:00:52.5]} 46... Ke6 {[%clk 0:00:31.5]} 47. Na7 {[%clk 0:00:51.9]} 1-0

[Event "Live Chess"]
[Site "Chess.com"]
[Date "2023.05.21"]
[Round "-"]
[White "FailsGambits"]
[Black "slava_ukr"]
[Result "0-1"]
[WhiteElo "1330"]
[BlackElo "2323"]
[TimeControl "300"]
[EndTime "6:14:17 PDT"]
[Termination "slava_ukr won by resignation"]

1. e4 {[%clk 0:04:59.9]} 1... d5 {[%clk 0:04:56.8]} 2. exd5 {[%clk 0:04:57.2]}
2... Qxd5 {[%clk 0:04:55.5]} 3. Nc3 {[%clk 0:04:56.4]} 3... Qd6 {[%clk
0:04:54.6]} 4. d3 {[%clk 0:04:55.8]} 4... Nf6 {[%clk 0:04:53.1]} 5. g3 {[%clk
0:04:54.1]} 5... c6 {[%clk 0:04:51.1]} 6. Nf3 {[%clk 0:04:44.1]} 6... Bf5 {[%clk
0:04:48.5]} 7. Bg2 {[%clk 0:04:42.2]} 7... e6 {[%clk 0:04:47.6]} 8. Bf4 {[%clk
0:04:40]} 8... Qb4 {[%clk 0:04:45]} 9. Rb1 {[%clk 0:04:24.5]} 9... Nbd7 {[%clk
0:04:43.4]} 10. a3 {[%clk 0:04:23.6]} 10... Qb6 {[%clk 0:04:40.6]} 11. O-O
{[%clk 0:04:22.1]} 11... Be7 {[%clk 0:04:34.5]} 12. Re1 {[%clk 0:04:08]} 12...
O-O {[%clk 0:04:32.2]} 13. Be3 {[%clk 0:04:07.1]} 13... Qc7 {[%clk 0:04:30.8]}
14. Bf4 {[%clk 0:04:05.6]} 14... Bd6 {[%clk 0:04:30]} 15. Be3 {[%clk 0:03:51.4]}
15... Nd5 {[%clk 0:04:25.4]} 16. Nd4 {[%clk 0:03:42]} 16... Nxe3 {[%clk
0:04:20.1]} 17. Rxe3 {[%clk 0:03:27.2]} 17... Bg6 {[%clk 0:04:18.1]} 18. Nf3
{[%clk 0:03:17]} 18... Nf6 {[%clk 0:04:14.4]} 19. Nh4 {[%clk 0:02:51.5]} 19...
Nd5 {[%clk 0:04:12.3]} 20. Nxd5 {[%clk 0:02:38.2]} 20... cxd5 {[%clk 0:04:11]}
21. Nxg6 {[%clk 0:02:36.8]} 21... hxg6 {[%clk 0:04:10.7]} 22. Re2 {[%clk
0:02:23.3]} 22... Rac8 {[%clk 0:04:08.9]} 23. Qd2 {[%clk 0:02:14.4]} 23... b5
{[%clk 0:04:05.3]} 24. Rc1 {[%clk 0:02:08.7]} 24... Qb6 {[%clk 0:04:01.2]} 25.
Qg5 {[%clk 0:01:44.2]} 25... b4 {[%clk 0:03:50.9]} 26. axb4 {[%clk 0:01:37.3]}
26... Qxb4 {[%clk 0:03:46]} 27. c3 {[%clk 0:01:19]} 27... Qb6 {[%clk 0:03:38.9]}
28. Qe3 {[%clk 0:01:14.2]} 28... d4 {[%clk 0:03:31.9]} 29. cxd4 {[%clk
0:01:00.8]} 29... Rxc1+ {[%clk 0:03:29.4]} 30. Qxc1 {[%clk 0:01:00.7]} 30...
Qxd4 {[%clk 0:03:28.3]} 31. Qe3 {[%clk 0:00:40]} 31... Bc5 {[%clk 0:03:22.7]}
32. Qxd4 {[%clk 0:00:26.4]} 32... Bxd4 {[%clk 0:03:21.6]} 33. b4 {[%clk
0:00:25.1]} 33... Rb8 {[%clk 0:03:17.6]} 34. Re4 {[%clk 0:00:23.2]} 34... Rxb4
{[%clk 0:03:15.3]} 0-1

[Event "Live Chess"]
[Site "Chess.com"]
[Date "2023.05.21"]
[Round "-"]
[White "zdanevych"]
[Black "NomisY"]
[Result "1-0"]
[WhiteElo "1518"]
[BlackElo "1543"]
[TimeControl "300"]
[EndTime "6:14:19 PDT"]
[Termination "zdanevych won on time"]

1. d4 {[%clk 0:04:55.7]} 1... Nf6 {[%clk 0:04:58.3]} 2. c4 {[%clk 0:04:54.5]}
2... e6 {[%clk 0:04:57]} 3. Nc3 {[%clk 0:04:53.4]} 3... d5 {[%clk 0:04:55.7]} 4.
cxd5 {[%clk 0:04:51.8]} 4... exd5 {[%clk 0:04:54.8]} 5. Nf3 {[%clk 0:04:50.5]}
5... Be7 {[%clk 0:04:52.8]} 6. h3 {[%clk 0:04:49.5]} 6... c6 {[%clk 0:04:49.5]}
7. Bf4 {[%clk 0:04:48.9]} 7... O-O {[%clk 0:04:47.5]} 8. e3 {[%clk 0:04:48.2]}
8... Bf5 {[%clk 0:04:45.9]} 9. Bd3 {[%clk 0:04:47.5]} 9... Bxd3 {[%clk
0:04:44.1]} 10. Qxd3 {[%clk 0:04:47.4]} 10... Nbd7 {[%clk 0:04:39.7]} 11. O-O
{[%clk 0:04:46.7]} 11... Re8 {[%clk 0:04:36.1]} 12. Bg5 {[%clk 0:04:43]} 12...
Ne4 {[%clk 0:03:58.3]} 13. Bf4 {[%clk 0:04:38.5]} 13... g5 {[%clk 0:02:48.4]}
14. Bh2 {[%clk 0:04:26.9]} 14... Bd6 {[%clk 0:02:26.5]} 15. Nd2 {[%clk
0:04:18.9]} 15... Bxh2+ {[%clk 0:01:45.5]} 16. Kxh2 {[%clk 0:04:18.8]} 16... f5
{[%clk 0:01:44.5]} 17. Rac1 {[%clk 0:03:46.2]} 17... Ndf6 {[%clk 0:01:13.7]} 18.
f3 {[%clk 0:03:43.1]} 18... Nd6 {[%clk 0:01:11.4]} 19. Nb3 {[%clk 0:03:20]}
19... Qe7 {[%clk 0:00:37.8]} 20. Rfe1 {[%clk 0:03:16]} 20... Qg7 {[%clk
0:00:36.4]} 21. Nc5 {[%clk 0:03:12.7]} 21... g4 {[%clk 0:00:34.6]} 22. fxg4
{[%clk 0:03:10.5]} 22... fxg4 {[%clk 0:00:32.8]} 23. Qe2 {[%clk 0:02:57.7]}
23... g3+ {[%clk 0:00:15.6]} 24. Kh1 {[%clk 0:02:55.5]} 24... Nfe4 {[%clk
0:00:14.8]} 25. N5xe4 {[%clk 0:02:51.1]} 25... Nxe4 {[%clk 0:00:13.8]} 26. Nxe4
{[%clk 0:02:46.5]} 26... Rxe4 {[%clk 0:00:13.4]} 27. Qf3 {[%clk 0:02:44.1]}
27... Rae8 {[%clk 0:00:13]} 28. Re2 {[%clk 0:02:39]} 28... Qg5 {[%clk
0:00:11.7]} 29. Rce1 {[%clk 0:02:37.3]} 29... Rf8 {[%clk 0:00:09.9]} 30. Rf1
{[%clk 0:02:26.7]} 30... Rxf3 {[%clk 0:00:08.2]} 31. Rxf3 {[%clk 0:02:26.6]}
31... Kg7 {[%clk 0:00:06.3]} 32. Re1 {[%clk 0:02:24]} 32... b6 {[%clk
0:00:05.6]} 33. Ref1 {[%clk 0:02:22.8]} 33... c5 {[%clk 0:00:04]} 34. Rf7+
{[%clk 0:02:21.9]} 34... Kg6 {[%clk 0:00:03.3]} 35. Rf8 {[%clk 0:02:18.3]} 35...
cxd4 {[%clk 0:00:01.8]} 36. Rg8+ {[%clk 0:02:17.3]} 1-0

[Event "Live Chess"]
[Site "Chess.com"]
[Date "2023.05.21"]
[Round "-"]
[White "Chesscoach_Golichenko"]
[Black "ViktorTheCoolBoy"]
[Result "1-0"]
[WhiteElo "2630"]
[BlackElo "2462"]
[TimeControl "300"]
[EndTime "6:14:29 PDT"]
[Termination "Chesscoach_Golichenko won by checkmate"]

1. d4 {[%clk 0:04:57.8]} 1... Nf6 {[%clk 0:04:57.9]} 2. c4 {[%clk 0:04:53.5]}
2... g6 {[%clk 0:04:54.5]} 3. Nc3 {[%clk 0:04:49.1]} 3... d5 {[%clk 0:04:53.8]}
4. cxd5 {[%clk 0:04:44.7]} 4... Nxd5 {[%clk 0:04:53.7]} 5. e4 {[%clk 0:04:43.9]}
5... Nxc3 {[%clk 0:04:52.8]} 6. bxc3 {[%clk 0:04:43.8]} 6... Bg7 {[%clk
0:04:51.5]} 7. Bc4 {[%clk 0:04:43.3]} 7... O-O {[%clk 0:04:48.2]} 8. Ne2 {[%clk
0:04:40.1]} 8... Nc6 {[%clk 0:04:47.4]} 9. O-O {[%clk 0:04:35.1]} 9... b6 {[%clk
0:04:46.7]} 10. f4 {[%clk 0:04:28.4]} 10... Bb7 {[%clk 0:04:40.4]} 11. f5 {[%clk
0:04:23.9]} 11... Na5 {[%clk 0:04:38.8]} 12. Bd3 {[%clk 0:04:22.4]} 12... c5
{[%clk 0:04:37.6]} 13. Be3 {[%clk 0:04:18.2]} 13... Qd7 {[%clk 0:04:29.8]} 14.
e5 {[%clk 0:04:10.6]} 14... Qc6 {[%clk 0:04:22.1]} 15. Nf4 {[%clk 0:03:59.3]}
15... g5 {[%clk 0:04:19]} 16. d5 {[%clk 0:03:11.6]} 16... Qc7 {[%clk 0:04:14.8]}
17. f6 {[%clk 0:02:55.3]} 17... Qxe5 {[%clk 0:04:05.6]} 18. fxg7 {[%clk
0:02:48.6]} 18... Qxe3+ {[%clk 0:04:03.9]} 19. Kh1 {[%clk 0:02:47.3]} 19... Kxg7
{[%clk 0:03:55.2]} 20. Qh5 {[%clk 0:02:38]} 20... gxf4 {[%clk 0:03:34.1]} 21.
Qxh7+ {[%clk 0:02:34.6]} 21... Kf6 {[%clk 0:03:33.1]} 22. Qf5+ {[%clk
0:02:23.7]} 22... Kg7 {[%clk 0:03:32.1]} 23. Qg5+ {[%clk 0:02:23.6]} 23... Kh8
{[%clk 0:03:31]} 24. Qh6+ {[%clk 0:02:23.5]} 24... Kg8 {[%clk 0:03:30.6]} 25.
Qh7# {[%clk 0:02:23.3]} 1-0

[Event "Live Chess"]
[Site "Chess.com"]
[Date "2023.05.21"]
[Round "-"]
[White "GMHarry-youtube"]
[Black "LodeshChess"]
[Result "1-0"]
[WhiteElo "2025"]
[BlackElo "1175"]
[TimeControl "300"]
[EndTime "6:14:37 PDT"]
[Termination "GMHarry-youtube won by resignation"]

1. e4 {[%clk 0:04:58.8]} 1... c6 {[%clk 0:04:59]} 2. d4 {[%clk 0:04:57]} 2... d5
{[%clk 0:04:58.5]} 3. e5 {[%clk 0:04:55.6]} 3... Bf5 {[%clk 0:04:56.6]} 4. h4
{[%clk 0:04:53.2]} 4... h6 {[%clk 0:04:55.3]} 5. Bd3 {[%clk 0:04:50.9]} 5...
Bxd3 {[%clk 0:04:54.2]} 6. Qxd3 {[%clk 0:04:50.8]} 6... e6 {[%clk 0:04:53.7]} 7.
Qb3 {[%clk 0:04:49.2]} 7... Qc7 {[%clk 0:04:41.4]} 8. c3 {[%clk 0:04:46.8]} 8...
Ne7 {[%clk 0:04:37.9]} 9. Nf3 {[%clk 0:04:35.5]} 9... Nf5 {[%clk 0:04:36.6]} 10.
g4 {[%clk 0:04:32.8]} 10... Ne7 {[%clk 0:04:31.4]} 11. a4 {[%clk 0:04:25.6]}
11... Nc8 {[%clk 0:04:30.4]} 12. Na3 {[%clk 0:04:20.5]} 12... c5 {[%clk
0:04:28.5]} 13. Nb5 {[%clk 0:04:15.6]} 13... Qb6 {[%clk 0:04:22.7]} 14. a5
{[%clk 0:04:10.1]} 14... Qc6 {[%clk 0:04:01]} 15. g5 {[%clk 0:03:53.6]} 15...
cxd4 {[%clk 0:03:55.1]} 16. cxd4 {[%clk 0:03:50.1]} 16... a6 {[%clk 0:03:52.9]}
17. Na3 {[%clk 0:03:45.3]} 17... b5 {[%clk 0:03:51.8]} 18. Bd2 {[%clk 0:03:41]}
18... Bxa3 {[%clk 0:03:42.9]} 19. bxa3 {[%clk 0:03:38.6]} 19... Qc4 {[%clk
0:03:39]} 20. Qb2 {[%clk 0:03:35.4]} 20... Qd3 {[%clk 0:03:19.4]} 21. Rh3 {[%clk
0:03:26.8]} 21... Qe4+ {[%clk 0:03:10.3]} 22. Kf1 {[%clk 0:03:25.2]} 22... Ne7
{[%clk 0:02:56.5]} 23. Re1 {[%clk 0:03:08.5]} 23... Qd3+ {[%clk 0:02:53.4]} 24.
Kg1 {[%clk 0:03:06.7]} 24... Nf5 {[%clk 0:02:46.6]} 25. g6 {[%clk 0:03:00]}
25... Nxh4 {[%clk 0:02:41.1]} 26. gxf7+ {[%clk 0:02:53.4]} 26... Kxf7 {[%clk
0:02:40.2]} 27. Ng5+ {[%clk 0:02:51.9]} 27... hxg5 {[%clk 0:02:35.8]} 28. Rxd3
{[%clk 0:02:48.7]} 28... Nf5 {[%clk 0:02:31.1]} 29. Rc1 {[%clk 0:02:45.9]} 29...
Nd7 {[%clk 0:02:28.8]} 30. Rc7 {[%clk 0:02:43.2]} 30... Ke7 {[%clk 0:02:28.2]}
31. Bb4+ {[%clk 0:02:41.5]} 31... Kd8 {[%clk 0:02:26.5]} 32. Qc3 {[%clk
0:02:31]} 1-0

[Event "Live Chess"]
[Site "Chess.com"]
[Date "2023.05.21"]
[Round "-"]
[White "Hacker_2009"]
[Black "Tiltador"]
[Result "1-0"]
[WhiteElo "1934"]
[BlackElo "845"]
[TimeControl "300"]
[EndTime "6:14:51 PDT"]
[Termination "Hacker_2009 won by checkmate"]

1. d4 {[%clk 0:04:58.8]} 1... d5 {[%clk 0:04:58.9]} 2. Nf3 {[%clk 0:04:56.7]}
2... e6 {[%clk 0:04:57.5]} 3. e3 {[%clk 0:04:55.9]} 3... c6 {[%clk 0:04:56.3]}
4. c4 {[%clk 0:04:54.9]} 4... Bb4+ {[%clk 0:04:50.3]} 5. Bd2 {[%clk 0:04:53.1]}
5... Bxd2+ {[%clk 0:04:49.2]} 6. Qxd2 {[%clk 0:04:52.2]} 6... Nf6 {[%clk
0:04:42.6]} 7. Nc3 {[%clk 0:04:50.7]} 7... O-O {[%clk 0:04:37.6]} 8. cxd5 {[%clk
0:04:48.8]} 8... Nxd5 {[%clk 0:04:32.5]} 9. Nxd5 {[%clk 0:04:46.9]} 9... cxd5
{[%clk 0:04:31.5]} 10. Bd3 {[%clk 0:04:46]} 10... Nc6 {[%clk 0:04:19.4]} 11. O-O
{[%clk 0:04:44.6]} 11... g6 {[%clk 0:04:18.4]} 12. Rac1 {[%clk 0:04:42.7]} 12...
Bd7 {[%clk 0:04:15.3]} 13. a3 {[%clk 0:04:41.7]} 13... a6 {[%clk 0:04:13.1]} 14.
Qc2 {[%clk 0:04:38.2]} 14... Qe7 {[%clk 0:04:02.2]} 15. Qb3 {[%clk 0:04:36.4]}
15... b5 {[%clk 0:03:56.6]} 16. Rc5 {[%clk 0:04:07.2]} 16... Na5 {[%clk
0:03:49.5]} 17. Qb4 {[%clk 0:04:03.5]} 17... Nc4 {[%clk 0:03:46.5]} 18. Bxc4
{[%clk 0:04:01.9]} 18... dxc4 {[%clk 0:03:38.7]} 19. Ne5 {[%clk 0:03:59.3]}
19... f6 {[%clk 0:03:29.2]} 20. Nxd7 {[%clk 0:03:52.2]} 20... Qxd7 {[%clk
0:03:27.1]} 21. b3 {[%clk 0:03:51.3]} 21... Rfb8 {[%clk 0:03:15.3]} 22. bxc4
{[%clk 0:03:48.5]} 22... bxc4 {[%clk 0:03:13.2]} 23. Qxc4 {[%clk 0:03:47.6]}
23... Re8 {[%clk 0:03:00.7]} 24. Rc1 {[%clk 0:03:45.5]} 24... Qb7 {[%clk
0:02:45.1]} 25. Rc7 {[%clk 0:03:42]} 25... Qb2 {[%clk 0:02:34.2]} 26. h3 {[%clk
0:03:34.5]} 26... Qxa3 {[%clk 0:02:16.4]} 27. Qc6 {[%clk 0:03:27.8]} 27... Qf8
{[%clk 0:01:44.7]} 28. Qd7 {[%clk 0:03:16.6]} 28... h5 {[%clk 0:01:21.7]} 29.
Qh7# {[%clk 0:03:14.6]} 1-0

[Event "Live Chess"]
[Site "Chess.com"]
[Date "2023.05.21"]
[Round "-"]
[White "Man-Del-Brot"]
[Black "LanceMaster23"]
[Result "0-1"]
[WhiteElo "1024"]
[BlackElo "1948"]
[TimeControl "300"]
[EndTime "6:15:13 PDT"]
[Termination "LanceMaster23 won on time"]

1. d4 {[%clk 0:04:52.8]} 1... Nf6 {[%clk 0:04:58.5]} 2. Nf3 {[%clk 0:04:50.2]}
2... d5 {[%clk 0:04:58]} 3. Bf4 {[%clk 0:04:48.8]} 3... Bf5 {[%clk 0:04:53]} 4.
e3 {[%clk 0:04:46.7]} 4... e6 {[%clk 0:04:52.4]} 5. Bd3 {[%clk 0:04:33.3]} 5...
Bg6 {[%clk 0:04:51.1]} 6. Ne5 {[%clk 0:04:23.6]} 6... c6 {[%clk 0:04:47.9]} 7.
Nxg6 {[%clk 0:04:12.7]} 7... hxg6 {[%clk 0:04:45.4]} 8. Nd2 {[%clk 0:04:12.4]}
8... Qb6 {[%clk 0:04:42.7]} 9. Qc1 {[%clk 0:04:06.2]} 9... Nbd7 {[%clk
0:04:41.3]} 10. O-O {[%clk 0:04:01.9]} 10... Be7 {[%clk 0:04:36.4]} 11. c4
{[%clk 0:03:57.6]} 11... O-O {[%clk 0:04:25.2]} 12. c5 {[%clk 0:03:34.3]} 12...
Qd8 {[%clk 0:04:24.2]} 13. Nf3 {[%clk 0:03:26.2]} 13... Re8 {[%clk 0:04:20.6]}
14. Bd6 {[%clk 0:03:15.4]} 14... Bxd6 {[%clk 0:04:15.6]} 15. cxd6 {[%clk
0:03:12.8]} 15... e5 {[%clk 0:04:09.7]} 16. dxe5 {[%clk 0:03:06.7]} 16... Nxe5
{[%clk 0:04:09.6]} 17. Nxe5 {[%clk 0:03:04.2]} 17... Rxe5 {[%clk 0:04:08.1]} 18.
f4 {[%clk 0:03:00.3]} 18... Re6 {[%clk 0:03:45.2]} 19. f5 {[%clk 0:02:54]} 19...
gxf5 {[%clk 0:03:32.1]} 20. Bxf5 {[%clk 0:02:52.1]} 20... Re5 {[%clk 0:03:24]}
21. Qc3 {[%clk 0:02:07.3]} 21... Qxd6 {[%clk 0:03:16.3]} 22. Rad1 {[%clk
0:01:48.5]} 22... Qe7 {[%clk 0:03:03.6]} 23. Rde1 {[%clk 0:01:24.2]} 23... Re8
{[%clk 0:02:51.4]} 24. Rf3 {[%clk 0:01:04.1]} 24... Ne4 {[%clk 0:02:35.8]} 25.
Bxe4 {[%clk 0:01:00.9]} 25... Rxe4 {[%clk 0:02:31.1]} 26. Rg3 {[%clk 0:00:56.5]}
26... Qe5 {[%clk 0:02:28.3]} 27. Qxe5 {[%clk 0:00:28.2]} 27... R8xe5 {[%clk
0:02:28.2]} 28. Kf2 {[%clk 0:00:26.5]} 28... d4 {[%clk 0:02:26.7]} 29. b3 {[%clk
0:00:17.9]} 29... Rxe3 {[%clk 0:02:16.5]} 30. Rgxe3 {[%clk 0:00:16.4]} 30...
Rxe3 {[%clk 0:02:16.4]} 31. Rxe3 {[%clk 0:00:14.8]} 31... dxe3+ {[%clk
0:02:16.3]} 32. Kxe3 {[%clk 0:00:13.8]} 32... f6 {[%clk 0:02:13]} 33. g4 {[%clk
0:00:12.9]} 33... Kf7 {[%clk 0:02:11.6]} 34. Ke4 {[%clk 0:00:12]} 34... Ke6
{[%clk 0:02:10.7]} 35. h4 {[%clk 0:00:10.3]} 35... c5 {[%clk 0:02:06.3]} 36. a4
{[%clk 0:00:09.6]} 36... a6 {[%clk 0:02:05.2]} 37. g5 {[%clk 0:00:07.2]} 37...
fxg5 {[%clk 0:02:03.9]} 38. hxg5 {[%clk 0:00:05.2]} 38... g6 {[%clk 0:02:03.4]}
39. Kf4 {[%clk 0:00:03.4]} 39... b5 {[%clk 0:01:59.3]} 0-1

[Event "Live Chess"]
[Site "Chess.com"]
[Date "2023.05.21"]
[Round "-"]
[White "Pablo_dmp"]
[Black "ClassyChameleon"]
[Result "1-0"]
[WhiteElo "1875"]
[BlackElo "1083"]
[TimeControl "300"]
[EndTime "6:15:22 PDT"]
[Termination "Pablo_dmp won by resignation"]

1. e4 {[%clk 0:04:58.5]} 1... e5 {[%clk 0:04:58.5]} 2. Nc3 {[%clk 0:04:57]} 2...
Nf6 {[%clk 0:04:55.7]} 3. f4 {[%clk 0:04:56.6]} 3... exf4 {[%clk 0:04:50.3]} 4.
e5 {[%clk 0:04:56.5]} 4... Ng8 {[%clk 0:04:45.8]} 5. Nf3 {[%clk 0:04:54.8]} 5...
Bc5 {[%clk 0:04:39.1]} 6. d4 {[%clk 0:04:52.8]} 6... Bb4 {[%clk 0:04:33.8]} 7.
Bxf4 {[%clk 0:04:50.1]} 7... Nc6 {[%clk 0:04:22.6]} 8. Bc4 {[%clk 0:04:45.7]}
8... h6 {[%clk 0:04:18.9]} 9. O-O {[%clk 0:04:44.3]} 9... Nge7 {[%clk
0:04:14.7]} 10. Ne4 {[%clk 0:04:41]} 10... d6 {[%clk 0:04:12.1]} 11. c3 {[%clk
0:04:35.1]} 11... dxe5 {[%clk 0:04:09.6]} 12. Nxe5 {[%clk 0:04:31.3]} 12... Nxe5
{[%clk 0:04:07.2]} 13. Bxe5 {[%clk 0:04:30.6]} 13... Bd6 {[%clk 0:04:04.1]} 14.
Nxd6+ {[%clk 0:04:27.5]} 14... cxd6 {[%clk 0:04:01.9]} 15. Bxf7+ {[%clk
0:04:18.1]} 15... Kd7 {[%clk 0:03:57.3]} 16. Qa4+ {[%clk 0:04:11.7]} 16... Nc6
{[%clk 0:03:54.7]} 17. d5 {[%clk 0:04:06.7]} 17... dxe5 {[%clk 0:03:48.7]} 18.
dxc6+ {[%clk 0:04:02.6]} 18... Kc7 {[%clk 0:03:47.8]} 19. cxb7 {[%clk
0:03:56.2]} 19... Bxb7 {[%clk 0:03:47]} 20. Rad1 {[%clk 0:03:52.4]} 20... Qe7
{[%clk 0:03:35.4]} 21. Qa5+ {[%clk 0:03:43.8]} 21... Kb8 {[%clk 0:03:26.7]} 22.
Bd5 {[%clk 0:03:30.1]} 22... Rd8 {[%clk 0:03:05.7]} 23. Bxb7 {[%clk 0:03:10.8]}
23... Rxd1 {[%clk 0:03:02.7]} 24. Rxd1 {[%clk 0:03:04.3]} 24... Kxb7 {[%clk
0:02:51]} 25. Qb5+ {[%clk 0:03:01.3]} 25... Kc7 {[%clk 0:02:46.3]} 26. Qc4+
{[%clk 0:02:55.3]} 26... Kb7 {[%clk 0:02:36.7]} 27. Qe4+ {[%clk 0:02:50.7]}
27... Kb8 {[%clk 0:02:31]} 28. Rd5 {[%clk 0:02:48.4]} 28... a6 {[%clk
0:02:20.3]} 29. Rxe5 {[%clk 0:02:46.3]} 29... Qd7 {[%clk 0:02:08.3]} 30. Re8+
{[%clk 0:02:44.9]} 30... Kc7 {[%clk 0:02:05.2]} 31. Rxa8 {[%clk 0:02:36.9]}
31... Qd1+ {[%clk 0:01:19.4]} 32. Kf2 {[%clk 0:02:35.7]} 32... Qd2+ {[%clk
0:01:15.6]} 33. Kg3 {[%clk 0:02:34.3]} 33... Qxb2 {[%clk 0:01:14.9]} 34. Qe7+
{[%clk 0:02:28.7]} 34... Kc6 {[%clk 0:01:13]} 35. Rc8+ {[%clk 0:02:25.9]} 35...
Kd5 {[%clk 0:01:11.5]} 36. c4+ {[%clk 0:02:24.2]} 36... Kd4 {[%clk 0:01:08.7]}
37. Qxg7+ {[%clk 0:02:23]} 1-0